Cogmind - Beta 14 @@@ ROGUE MODE // 2024.08.14 @ 09:38:04 Player: Minty Result: Destroyed self with Mini Grenade Launcher Performance ------------- Evolutions (1) 500 Regions Visited (3) 600 Robots Destroyed (61) 305 Value Destroyed (1260) 1260 Prototype IDs (4) 80 Alien Tech Used (0) 0 Bonus (119) 119 TOTAL SCORE: 2864 Bonus ------- High Alert Combat Kills 119 Cogmind --------- Core Integrity 0/400 Matter 173/300 Energy 100/100 System Corruption 2% Temperature Cool (0) Movement Flying (37) Location -9/Storage Parts ------- > --- POWER (1) -------- (None) > --- PROPULSION (3) --- Improved Flight Unit Improved Flight Unit > --- UTILITY (3) ------ Small Storage Unit > --- WEAPON (2) ------- Mini Grenade Launcher > --- INVENTORY (8) ---- Medium Storage Unit Medium Battery (150) Large Matter Pod (150) Hardened Light Armor Plating Drone Bay (2/2) Heavy Assault Rifle Mace Peak State ------------ > --- POWER ------------ Improved Ion Engine > --- PROPULSION ------- Improved Flight Unit Improved Flight Unit Improved Flight Unit > --- UTILITY ---------- Small Storage Unit Sensor Array Improved Terrain Scanner > --- WEAPON ----------- Light Assault Rifle Mini Grenade Launcher > --- INVENTORY -------- Improved Ion Engine Improved Flight Unit Improved Flight Unit Medium Storage Unit Large Matter Pod Mini Grenade Launcher Mace [Rating: 20] Favorites ----------- Power Light Ion Engine Engine Light Ion Engine Propulsion Improved Flight Unit Leg Aluminum Leg Wheel Compact Wheel Hover Unit Hover Unit Flight Unit Improved Flight Unit Utility Small Storage Unit Device Improved Terrain Scanner Storage Small Storage Unit Protection Hardened Light Armor Plating Weapon Light Assault Rifle Energy Gun Medium Laser Ballistic Gun Light Assault Rifle Launcher Mini Grenade Launcher Impact Weapon Mace Build | -11 -10 -9 -9 ------- Run | Yrd Mat Mat Sto Slots Evolved 2 | . . 2 . Power . | . . . . Propulsion 1 | . . 1 . Utility 1 | . . 1 . Weapon . | . . . . Parts Attached 50 | . 19 24 7 Power 6 | . 3 2 1 Engine 6 | . 3 2 1 Core . | . . . . Reactor . | . . . . Propulsion 15 | . 6 8 1 Treads . | . . . . Leg 1 | . . 1 . Wheel 6 | . 4 2 . Hover 3 | . 2 1 . Flight 5 | . . 4 1 Utility 10 | . 3 6 1 Device 4 | . 1 2 1 Storage 5 | . 2 3 . Processor . | . . . . Hackware . | . . . . Protection 1 | . . 1 . Artifact . | . . . . Weapon 19 | . 7 8 4 Energy Gun 1 | . 1 . . Energy Cannon . | . . . . Ballistic Gun 5 | . 3 2 . Ballistic Cannon . | . . . . Launcher 8 | . 1 4 3 Special Weapon . | . . . . Impact Weapon 5 | . 2 2 1 Slashing Weapon . | . . . . Piercing Weapon . | . . . . Special Melee Weapon . | . . . . Unidentified Prototypes . | . . . . Parts Lost 16 | . 3 8 5 Power 4 | . 1 2 1 Propulsion 6 | . 1 4 1 Utility 3 | . . 1 2 Weapon 3 | . 1 1 1 Highest Loss Streak 3 | . 2 3 3 To Critical Strikes 1 | . 1 . . Average Slot Usage (%) 85 | . 90 87 72 Engine 11 | . 14 9 9 Leg 1 | . 2 1 . Wheel 7 | . 21 1 . Hover 4 | . 1 8 . Flight 14 | . . 18 28 Device 11 | . . 18 13 Storage 14 | . 21 11 11 Energy Gun 3 | . 12 . . Ballistic Gun 11 | . 13 13 . Launcher 2 | . . 2 9 Impact Weapon 1 | . 1 . . Peak Build Rating 20 | . 9 20 19 Average Rating 12 | . 7 15 16 On Entrance 8 | 6 6 8 15 Naked Turns . | . . . . Heaviest Build 17 | 13 15 17 16 Greatest Support 32 | 20 32 22 15 Greatest Overweight (x) 2 | . 1 2 1 Average Overweight (x) . | . . . . Largest Inventory Capacity 10 | . 8 10 8 Average Capacity 8 | . 8 8 8 Most Carried 10 | . 8 10 8 Average Carried 7 | . 7 7 7 Final Capacity 8 | 8 8 8 8 Final Carried 8 | 6 8 8 7 Class Distribution -------------------- 59% | Mutant 40% | Scavenger-Mutant Dominant Class ---------------- Mutant | -10/Materials Scavenger-Mutant | -9/Materials Mutant | -9/Storage Resources | -11 -10 -9 -9 ----------- Run | Yrd Mat Mat Sto Matter Collected 1115 | 200 373 407 135 Remotely . | . . . . Salvage Created 1474 | . 522 596 356 Parts 112 | . 32 43 37 Haulers Intercepted 4 | . . 2 2 Recyclers Shooed 2 | . 1 1 . Parts Field Recycled . | . . . . Retrieved Matter . | . . . . Parts Self-Destructed . | . . . . Prevented . | . . . . Kills | -11 -10 -9 -9 ------- Run | Yrd Mat Mat Sto Combat Hostiles Destroyed 39 | . 9 21 9 Melee 1 | . 1 . . Guns 9 | . 4 5 . AOE 27 | . 3 15 9 Classes Destroyed 11 | . 5 4 2 Worker 3 | . . 2 1 Builder 3 | . . . 3 Tunneler 2 | . 2 . . Hauler 4 | . . 2 2 Recycler 4 | . 3 . 1 Mechanic 1 | . . . 1 Operator 3 | . . 2 1 Watcher 2 | . 2 . . Swarmer 15 | . 3 8 4 Grunt 20 | . 6 10 4 Sentry 4 | . . 3 1 Best Kill Streak 10 | . 6 10 6 Combat Bots Only 8 | . 2 8 4 Max Kills in Single Turn 6 | . 4 6 3 Gunslinging . | . . . . Exploded 5 | . 2 5 2 Melee 1 | . 1 . . Uniques/NPCs Destroyed . | . . . . Combat | -11 -10 -9 -9 -------- Run | Yrd Mat Mat Sto Hostile Shots Fired 187 | . 60 100 27 Missed 67 | . 15 41 11 Damage Taken 1712 | . 579 751 382 Core 593 | . 192 243 158 Absorbed by Shields . | . . . . Regen/Repaired (Parts) 141 | . . 63 78 Core Remaining (%) 61 | 100 23 . . Volleys Fired 123 | . 34 69 20 Largest 2 | . 2 2 1 Hottest 70 | . 70 50 30 Shots Fired 192 | . 68 104 20 Gun 157 | . 67 90 . Cannon . | . . . . Launcher 35 | . 1 14 20 Special . | . . . . Kinetic 124 | . 34 90 . Thermal 33 | . 33 . . Explosive 35 | . 1 14 20 Electromagnetic . | . . . . Robot Hit Streak 10 | . 6 9 10 Robot Miss Streak 4 | . 4 2 2 Penetration Max . | . . . . Secondary Targets . | . . . . Shots Hit Robots 127 | . 47 72 8 Core Hits 86 | . 19 44 23 Critical Kills 1 | . 1 . . Critical Parts Destroyed 5 | . 3 2 . Critical Strikes 7 | . 5 2 . Burn 1 | . 1 . . Destroy 2 | . 2 . . Smash 4 | . 2 2 . Melee Attacks 12 | . 6 5 1 Impact 12 | . 6 5 1 Slashing . | . . . . Piercing . | . . . . Sneak Attacks 1 | . 1 . . Combat Hostiles . | . . . . Follow-up Attacks . | . . . . Damage Inflicted 3839 | . 1122 1739 978 Guns 894 | . 411 483 . Cannons . | . . . . Explosions 2717 | . 564 1175 978 Melee 205 | . 147 58 . Ramming 23 | . . 23 . Kinetic 672 | . 189 483 . Thermal 702 | . 702 . . Explosive 2237 | . 84 1175 978 Electromagnetic . | . . . . Impact 205 | . 147 58 . Slashing . | . . . . Piercing . | . . . . Highest Corruption 2 | . . . 2 Average Corruption 2 | . . . 2 Corruption Purged . | . . . . Corruption Blocked . | . . . . Effects 1 | . . . 1 Data Loss (major) 1 | . . . 1 Overload Shots . | . . . . Overflow Damage 395 | . 273 63 59 Projectiles . | . . . . Explosions 286 | . 202 25 59 Melee 109 | . 71 38 . Knockbacks 1 | . 1 . . Impact 1 | . 1 . . Kinetic . | . . . . Secondary . | . . . . Self-Inflicted Damage 337 | . 108 30 199 Shots 9 | . 1 1 7 Rammed 1 | . . 1 . Targets Rammed 1 | . . 1 . Kicked . | . . . . Crushed . | . . . . Highest Temperature 190 | . 190 22 16 Average Temperature 44 | . 63 4 5 Received Heat Transfer 588 | . 210 291 87 Siege Activations . | . . . . Robots Corrupted 2 | . 1 1 . Combat Hostiles 2 | . 1 1 . Parts Fried 4 | . 1 3 . Impact Corruptions 4 | . 2 2 . Robots Melted . | . . . . Combat Hostiles . | . . . . Parts Melted 1 | . 1 . . Heat Transferred 1040 | . 1040 . . Parts Sabotaged . | . . . . Parts Stolen . | . . . . Parts Stripped . | . . . . Power Chain Reactions . | . . . . Alert | -11 -10 -9 -9 ------- Run | Yrd Mat Mat Sto Peak Influence 740 | . 454 740 637 Initial 308 | . . 191 308 Average 339 | . 212 375 483 Maximum Alert Level 3 | . 2 3 2 Low Security (%) 22 | . 59 6 . Level 1 47 | . 24 66 33 Level 2 29 | . 16 25 66 Level 3 . | . . 1 . Level 4 . | . . . . Level 5 . | . . . . High Security . | . . . . Max Security . | . . . . Squads Dispatched 9 | . 2 4 3 Investigation 5 | . 1 3 1 Extermination . | . . . . Reinforcement 3 | . 1 1 1 Assault . | . . . . Garrison 1 | . . . 1 Intercept . | . . . . Searches Triggered . | . . . . Construction Impeded 1 | . . . 1 Haulers Reinforced . | . . . . Active Scanning Responses . | . . . . Cargo Convoy Interrupts . | . . . . Stealth | -11 -10 -9 -9 --------- Run | Yrd Mat Mat Sto Distress Signals 3 | . 1 2 . Communications Jammed . | . . . . Distress Signals . | . . . . Times Spotted 74 | . 21 40 13 Peak Tracking Total 10 | . 5 10 6 Tactical Retreats 8 | . 5 3 . Traps | -11 -10 -9 -9 ------- Run | Yrd Mat Mat Sto Traps Triggered . | . . . . Indirectly . | . . . . Trap Hack Attempts . | . . . . Triggered . | . . . . Disarmed . | . . . . Reprogrammed 10 | . . . 10 Reused . | . . . . Traps Extracted . | . . . . Installed . | . . . . Triggered . | . . . . Machines | -11 -10 -9 -9 ---------- Run | Yrd Mat Mat Sto Machines Disabled 10 | . 2 4 4 Max in Single Turn 2 | . 2 2 1 Machines Repaired . | . . . . Machines Dismantled . | . . . . Machines Sabotaged . | . . . . Overloaded Fab Kills . | . . . . Hacking | -11 -10 -9 -9 --------- Run | Yrd Mat Mat Sto Machines Accessed 23 | . 3 11 9 Terminals 17 | . 2 7 8 Fabricators . | . . . . Repair Stations 3 | . . 2 1 Recycling Units 3 | . 1 2 . Scanalyzers . | . . . . Garrison Access . | . . . . Total Hacks 74 | . 8 31 35 Successful 44 | . 4 18 22 Failed 30 | . 4 13 13 Catastrophic 6 | . 1 1 4 Database Lockouts . | . . . . Manual 45 | . 2 19 24 Terminals 57 | . 4 20 33 Fabricators . | . . . . Repair Stations 6 | . . 4 2 Recycling Units 11 | . 4 7 . Scanalyzers . | . . . . Garrison Access . | . . . . Terminal Hacks 16 | . 1 4 11 Prototype ID Bank 2 | . 1 . 1 Open Door 1 | . . . 1 Branch Access Points 2 | . . 1 1 Terminal Index 1 | . . 1 . Alert Level 3 | . . 1 2 Unreport Threat 3 | . . 1 2 Locate Traps 2 | . . . 2 Reprogram Traps 2 | . . . 2 Fabricator Hacks . | . . . . Repair Station Hacks 4 | . . 2 2 Scan Component 2 | . . 1 1 Repair 2 | . . 1 1 Recycling Unit Hacks 7 | . 2 5 . Process 1 | . . 1 . Report Inventory 3 | . 1 2 . Retrieve Matter 1 | . . 1 . Retrieve Components 2 | . 1 1 . Scanalyzer . | . . . . Garrison Access Hacks . | . . . . Unauthorized Hacks 17 | . 1 7 9 Terminals 14 | . 1 4 9 Botnet 7 | . 1 2 4 Disrupt 1 | . . 1 . Operators 1 | . . 1 . Skim 5 | . . . 5 Fabricators . | . . . . Repair Stations 1 | . . 1 . Patch 1 | . . 1 . Recycling Units 2 | . . 2 . Reject 1 | . . 1 . Recyclers 1 | . . 1 . Scanalyzers . | . . . . Garrison Access . | . . . . Data Cores Recovered 1 | . . 1 . Used 1 | . . 1 . Hacking Detections 19 | . 3 8 8 Full Trace Events 6 | . 1 4 1 Feedback Events . | . . . . Feedback Blocked . | . . . . Robot Schematics Acquired . | . . . . Robots Built . | . . . . Authchips . | . . . . Time . | . . . . Total Robot Build Rating . | . . . . Part Schematics Acquired . | . . . . Parts Built . | . . . . Authchips . | . . . . Time . | . . . . Total Part Build Rating . | . . . . Parts Repaired 2 | . . 1 1 Time 70 | . . 38 32 Parts Recycled . | . . . . Recycled Matter 11 | . . 11 . Retrieved Matter 11 | . . 11 . Retrieved Components 12 | . 3 9 . Parts Scanalyzed . | . . . . Part Schematics Acquired . | . . . . Parts Damaged . | . . . . Bothacking | -11 -10 -9 -9 ------------ Run | Yrd Mat Mat Sto Used RIF Installer . | . . . . Robots Hacked . | . . . . Non-combat . | . . . . Combat . | . . . . Robot Hacks Applied . | . . . . Relay Couplers Released . | . . . . Fabnet Peak Effective % . | . . . . Robots Rewired . | . . . . Allies Hacked . | . . . . Hacks Repelled . | . . . . Allies | -11 -10 -9 -9 -------- Run | Yrd Mat Mat Sto Total Allies . | . . . . Largest Group . | . . . . Highest-Rated Group . | . . . . Highest-Rated Ally . | . . . . Total Orders . | . . . . Ally Attacks . | . . . . Total Damage . | . . . . Kills . | . . . . Allies Corrupted . | . . . . Allies Melted . | . . . . Intel | -11 -10 -9 -9 ------- Run | Yrd Mat Mat Sto Robot Analysis Total . | . . . . Derelict Logs Recovered . | . . . . Drone Launches . | . . . . Drone Recoveries . | . . . . Exploration | -11 -10 -9 -9 ------------- Run | Yrd Mat Mat Sto Turns Passed 1167 | . 387 582 198 Spaces Moved 1133 | 1 234 695 203 Core . | . . . . Treads . | . . . . Legs 52 | 1 34 17 . Wheels 203 | . 170 33 . Hover 190 | . 30 160 . Flight 688 | . . 485 203 Fastest Speed 34 | 120 56 34 34 Average Speed 57 | 120 99 45 50 Slowest Speed 180 | 120 120 180 107 Overloaded Moves . | . . . . Propulsion Burnouts . | . . . . Robots Hopped 11 | . . 7 4 Cave-ins Triggered . | . . . . Exploration Rate (%) 35 | 2 33 69 37 Regions Visited 3 Branch Regions 1 Pre-discovered Areas . | . . . . Known Exits Taken 1 | . . 1 . Unknown Exits Taken 2 | 1 1 . . Scrap Searched . | . . . . Spaces Dug 4 | . . . 4 Terrain Destroyed 318 | . 26 120 172 Melee . | . . . . Projectile . | . . . . AOE 318 | . 26 120 172 Terrain Rammed . | . . . . Walls Destroyed . | . . . . Machines Disabled . | . . . . Actions | -11 -10 -9 -9 --------- Run | Yrd Mat Mat Sto Total 1451 | . 316 863 272 Wait 93 | . 4 48 41 Move 1109 | . 233 681 195 Hop 11 | . . 7 4 Pick Up 22 | . 9 10 3 Fast Attach 15 | . 4 10 1 Attach 16 | . 5 8 3 Detach 7 | . 1 6 . Swap 19 | . 10 6 3 Drop 24 | . 10 13 1 Fire 123 | . 34 69 20 Melee 12 | . 6 5 1 Ram . | . . . . Kick . | . . . . Crush . | . . . . Escape Stasis . | . . . . Rewire . | . . . . Trap . | . . . . Miscellaneous . | . . . . Route ------- -11/Scrapyard -10/Materials (discovered 2 exits: *Mat / [*Min]) -9/Materials (discovered 5 exits: [*Mat] / *Min x2 / *Sto x2) -9/Storage (discovered 1 exit: Rec) History --------- Turn | Location | Event 1 | -11/Scrapyard | Discovered new exit (range 0) 1 | -11/Scrapyard | Entered Materials 139 | -10/Materials | Core integrity fell below 50% 190 | -10/Materials | Discovered new exit (range 8) 262 | -10/Materials | Discovered new exit (range 3) 388 | -10/Materials | Entered another Materials area 388 | -9/Materials | Evolved 2 slots: Propulsion x1, Utility x1 601 | -9/Materials | Build established: Scavenger-Mutant 731 | -9/Materials | Repaired Imp. Terrain Scanner 795 | -9/Materials | Discovered new exit (range 15) 848 | -9/Materials | Discovered new exit (range 15) 876 | -9/Materials | Destroyed 8 combat bots 904 | -9/Materials | Core integrity fell below 50% 910 | -9/Materials | Lost 3 parts (1p1n1u) 918 | -9/Materials | Identified exit to Mines 918 | -9/Materials | Identified exit to Storage 970 | -9/Materials | Entered Storage 1079 | -9/Storage | Repaired Mace 1102 | -9/Storage | Garrison activated, responded to threat 1119 | -9/Storage | Build established: Mutant 1153 | -9/Storage | Core integrity fell below 20% 1160 | -9/Storage | Identified exit to Recycling 1168 | -9/Storage | Destroyed self with Mini Grenade Launcher Last Messages --------------- Reprogrammed 4 Shock Traps. >>Traps(Reprogram) Reprogrammed 6 Explosive Traps. >>Trojan(Botnet) Trojan loaded successfully. Testing... Terminal linked with 3 systems. Awaiting botnet instructions. >>Alert(Check) Current Alert Level: 2-H 01164_ K-01 Serf cleans the Terminal. 01164_ Connecting with Terminal... >>Prototypes Downloading prototype IDs... Aerolev Unit Imp. Assault Rifle >>Alert(Check) Current Alert Level: 2-H 01167_ K-01 Serf cleans the Terminal. 01168_ Storage Shell breached. Map ----- +----------------------------------------------------+ | #####??#?????#?????????????????????????? | | #?????#???????????????????????????????? | | #?????????????????????????????????????? | | ######????????????????????????????????? | | ?????????????????????????????????? | | ??????? ??????????????????????????? | | ???????????????????????????????????? | | #?#########?????#????????????????????? | | ##?## T###????????????????????????? | | = # # #????????????????????????? | | #???????? #??????????????? | | * [ #?????? #??????????????? | | # % #?????# #??????????????? | | [ ##?#??# +??????????????? | | " " ###### #??????????????? | | ## # ^ #??????????????? | | ######"" #??????????????? | | # #????#"T """ #??????????????? | | #????#"" """ ####???????????? | | ## #######?### ^^ """ # w???????????? | | ##?????????#^ ^ """"????????? | | #??????????# ^ ^^ =["????????? | | #?#???????## ^ ^ ]=?????????? | | ##?????????#" "" "??????????? | | ???#??####?#T "T ""?????????? | | # ??? #?#" k"" /@ "?????????? | | ##?? #?## # #????? | | # + r ###########????? | | # ]/ ###+#######+##??????????????? | | +| ]#???????? ??????????????? | | # #??????# """"" ????????????? | | # = #??????# """"" #???????????? | | ##? #??????#/ """"" ""??????????? | | ???#########??????# Y"#?????????? | | ??????????????????# """"" ""??????????? | | ?????????????????? """"??????????????? | | ??????????????????#! ??????????????????? | | ??????????????????#????????????????????? | | ???????????????????????????????????????? | | | | | | | | | | | | | | | | | | | | | | | +----------------------------------------------------+ Best States ------------- Heat Dissipation 28 Energy Generation 12 Energy Capacity 265 Matter Stores 450 Matter Capacity 450 Sight Range 16 Robot Scan Range 14 Terrain Scan Range 16 Terrain Scan Density 10 Armor Coverage 150 Evasion (%) 63 Item Schematics ----------------- None Robot Schematics ------------------ None Fabricated ------------ Nothing Alien Tech Used ----------------- None Achievements -------------- None Challenges ------------ None Game ------ Seed SpliceRingBeamcaster Manual? 0 Play Time 00:18:18 Cumulative 859.3 hours Start 2024.08.14 @ 09:20:26 End 2024.08.14 @ 09:38:04 Sessions 1 Manual Loads 0 Difficulty Rogue Special Mode None Game No. 1033 Rogue 754 Adventurer 124 Explorer 155 Win Type - Total 36 Types 28/0/6/1/0/0/0/1/0 Lore% 75 Gallery% 89 Achievement% 78 Wizard Run 0 Options --------- Layout 0 ASCII 0 Keyboard 1 Movement Numpad Keybinds 0 Fullscreen 2 Font 18/Smallcaps Map View 76x50 Zoom Use 0% Tactical HUD 1 Map Filters NONE Filters NONE Steam 1 RUN: 51bcbabc-750d-4e5c-ac3b-77dadc8ddd88